Cogmind - Beta 11 X10 @@@ ROGUE MODE // 2022.02.13 @ 19:31:22 Player: Luna Result: Destroyed self via exploding EX-Generator Performance ------------- Evolutions (0) 0 Regions Visited (3) 600 Robots Destroyed (26) 130 Value Destroyed (630) 630 Prototype IDs (0) 0 Alien Tech Used (0) 0 Bonus (0) 0 TOTAL SCORE: 1360 Bonus ------- None Cogmind --------- Core Integrity 0/250 Matter 268/300 Energy 238/250 System Corruption 0% Temperature Cool (25) Movement Core (500) Ox9 Location -10/Exiles Parts ------- > --- POWER (1) -------- Ion Engine > --- PROPULSION (2) --- (None) > --- UTILITY (2) ------ Large Storage Unit Seismic Detector > --- WEAPON (2) ------- Medium Laser > --- INVENTORY (15) --- Light Ion Engine Wheel Heat Sink Improved Heat Sink Medium Storage Unit High-capacity Storage Unit Huge Storage Unit Light Armor Plating Small Laser Small Laser Small Laser Small Laser Grenade Launcher Peak State ------------ > --- POWER ------------ Ion Engine > --- PROPULSION ------- Light Treads Light Treads > --- UTILITY ---------- Improved Heat Sink Medium Storage Unit > --- WEAPON ----------- Medium Laser Assault Rifle > --- INVENTORY -------- Light Ion Engine Aluminum Leg Aluminum Leg Wheel Compact Wheel Heat Sink Large Storage Unit Sensor Array Seismic Detector Small Laser [Rating: 10] Favorites ----------- Power Ion Engine Engine Ion Engine Propulsion Light Treads Treads Light Treads Utility Seismic Detector Device Seismic Detector Storage Large Storage Unit Protection Light Armor Plating Weapon Assault Rifle Energy Gun Medium Laser Ballistic Gun Assault Rifle Launcher Grenade Launcher Special Weapon Mining Laser Build | -11 -10 -10 -10 ------- Run | Scr Mat Min Exi Slots Evolved . | . . . . Power . | . . . . Propulsion . | . . . . Utility . | . . . . Weapon . | . . . . Parts Attached 27 | 7 17 1 2 Power 2 | 1 1 . . Engine 2 | 1 1 . . Core . | . . . . Reactor . | . . . . Propulsion 2 | 2 . . . Treads 2 | 2 . . . Leg . | . . . . Wheel . | . . . . Hover . | . . . . Flight . | . . . . Utility 15 | 2 12 1 . Device 10 | 1 8 1 . Storage 4 | 1 3 . . Processor . | . . . . Hackware . | . . . . Protection 1 | . 1 . . Artifact . | . . . . Weapon 8 | 2 4 . 2 Energy Gun 5 | 1 3 . 1 Energy Cannon . | . . . . Ballistic Gun 1 | 1 . . . Ballistic Cannon . | . . . . Launcher 1 | . 1 . . Special Weapon 1 | . . . 1 Impact Weapon . | . . . . Slashing Weapon . | . . . . Piercing Weapon . | . . . . Special Melee Weapon . | . . . . Unidentified Prototypes . | . . . . Parts Lost 5 | . 1 . 4 Power . | . . . . Propulsion 2 | . . . 2 Utility . | . . . . Weapon 3 | . 1 . 2 Highest Loss Streak 4 | . 1 . 4 To Critical Strikes . | . . . . Average Slot Usage (%) 99 | . 99 100 99 Engine 14 | . 14 14 14 Treads 27 | . 28 28 27 Device 12 | . 11 6 14 Storage 14 | . 14 14 14 Protection 1 | . 1 7 . Energy Gun 8 | . 12 . . Ballistic Gun 13 | . 14 14 13 Launcher 4 | . 1 14 11 Naked Turns . | . . . . Heaviest Build 33 | 15 33 33 31 Greatest Support 40 | 40 40 40 40 Greatest Overweight (x) 1 | . . . 1 Average Overweight (x) . | . . . . Largest Inventory Capacity 15 | 8 15 15 15 Average Capacity 12 | 7 11 15 15 Most Carried 15 | 6 15 15 15 Average Carried 11 | 4 10 15 14 Final Capacity 15 | 8 15 15 15 Final Carried 15 | 6 15 15 13 Class Distribution -------------------- 100% | Mutant Dominant Class ---------------- Mutant | -10/Materials Mutant | -10/Mines Mutant | -10/Exiles Resources | -11 -10 -10 -10 ----------- Run | Scr Mat Min Exi Matter Collected 627 | 269 358 . . Remotely . | . . . . Salvage Created 789 | 68 721 . . Parts 39 | 3 36 . . Haulers Intercepted . | . . . . Recyclers Shooed 2 | 1 1 . . Parts Field Recycled . | . . . . Retrieved Matter . | . . . . Parts Self-Destructed . | . . . . Prevented . | . . . . Kills | -11 -10 -10 -10 ------- Run | Scr Mat Min Exi Combat Hostiles Destroyed 18 | . 18 . . Guns 14 | . 14 . . AOE 4 | . 4 . . Classes Destroyed 7 | 2 5 . . Worker 1 | . 1 . . Builder 1 | . 1 . . Tunneler 2 | 1 1 . . Recycler 2 | 1 1 . . Watcher 2 | . 2 . . Swarmer 3 | . 3 . . Grunt 15 | . 15 . . Best Kill Streak 4 | 1 4 . . Combat Bots Only 4 | . 4 . . Max Kills in Single Turn 2 | 1 2 . . Gunslinging . | . . . . Exploded 2 | . 2 . . Melee . | . . . . Uniques/NPCs Destroyed . | . . . . Combat | -11 -10 -10 -10 -------- Run | Scr Mat Min Exi Damage Taken 847 | . 558 . 289 Core 283 | . 143 . 140 Absorbed by Shields . | . . . . Core Remaining (%) 100 | 100 . . . Volleys Fired 88 | 17 58 . 13 Largest 2 | 2 2 . 1 Hottest 100 | 70 70 . 100 Shots Fired 146 | 22 111 . 13 Gun 129 | 22 106 . 1 Cannon . | . . . . Launcher 5 | . 5 . . Special 12 | . . . 12 Kinetic 58 | 5 53 . . Thermal 83 | 17 53 . 13 Explosive 5 | . 5 . . Electromagnetic . | . . . . Robot Hit Streak 9 | 4 9 . . Robot Miss Streak 6 | 6 4 . . Penetration Max . | . . . . Secondary Targets 1 | . 1 . . Max Gunslinging Chain 1 | . 1 . . Shots Hit Robots 79 | 10 69 . . Core Hits 40 | 3 37 . . Critical Kills . | . . . . Critical Parts Destroyed . | . . . . Critical Strikes 2 | 1 1 . . Burn 2 | 1 1 . . Melee Attacks . | . . . . Impact . | . . . . Slashing . | . . . . Piercing . | . . . . Sneak Attacks . | . . . . Combat Hostiles . | . . . . Follow-up Attacks . | . . . . Damage Inflicted 1280 | 120 1160 . . Guns 985 | 120 865 . . Cannons . | . . . . Explosions 254 | . 254 . . Melee . | . . . . Ramming 41 | . 41 . . Kinetic 402 | 22 380 . . Thermal 583 | 98 485 . . Explosive 254 | . 254 . . Electromagnetic . | . . . . Impact . | . . . . Slashing . | . . . . Piercing . | . . . . Highest Corruption . | . . . . Average Corruption . | . . . . Corruption Purged . | . . . . Corruption Blocked . | . . . . Overload Shots . | . . . . Overflow Damage 97 | . 1 . 96 Projectiles . | . . . . Explosions 96 | . . . 96 Melee 1 | . 1 . . Knockbacks . | . . . . Impact . | . . . . Kinetic . | . . . . Secondary . | . . . . Self-Inflicted Damage 120 | . 12 . 108 Shots 2 | . 1 . 1 Rammed 8 | . 8 . . Targets Rammed 10 | . 10 . . Kicked . | . . . . Crushed 2 | . 2 . . Highest Temperature 202 | 60 202 . 50 Average Temperature 39 | 21 62 . 20 Received Heat Transfer 267 | . 267 . . Siege Activations . | . . . . Robots Corrupted . | . . . . Combat Hostiles . | . . . . Parts Fried . | . . . . Impact Corruptions 1 | . 1 . . Robots Melted . | . . . . Combat Hostiles . | . . . . Parts Melted 2 | . 2 . . Heat Transferred 1850 | 370 1480 . . Parts Sabotaged . | . . . . Parts Stolen . | . . . . Parts Stripped . | . . . . Power Chain Reactions . | . . . . Missiles Intercepted . | . . . . Alert | -11 -10 -10 -10 ------- Run | Scr Mat Min Exi Peak Influence 311 | 10 311 97 . Initial 97 | . 6 97 . Average 138 | 3 156 97 . Maximum Alert Level 1 | . 1 . . Low Security (%) 64 | 100 58 100 . Level 1 35 | . 41 . . Level 2 . | . . . . Level 3 . | . . . . Level 4 . | . . . . Level 5 . | . . . . High Security . | . . . . Max Security . | . . . . Squads Dispatched 6 | . 6 . . Investigation 2 | . 2 . . Extermination . | . . . . Reinforcement 4 | . 4 . . Assault . | . . . . Garrison . | . . . . Intercept . | . . . . Construction Impeded . | . . . . Haulers Reinforced . | . . . . Active Scanning Responses . | . . . . Cargo Convoy Interrupts . | . . . . Stealth | -11 -10 -10 -10 --------- Run | Scr Mat Min Exi Distress Signals 2 | . 2 . . Communications Jammed . | . . . . Distress Signals . | . . . . Times Spotted 44 | . 36 . 8 Peak Tracking Total 11 | . 4 . 11 Tactical Retreats 3 | . 2 . 1 Traps | -11 -10 -10 -10 ------- Run | Scr Mat Min Exi Traps Triggered 1 | . 1 . . Indirectly . | . . . . Trap Hack Attempts . | . . . . Triggered . | . . . . Disarmed . | . . . . Reprogrammed . | . . . . Reused . | . . . . Traps Extracted . | . . . . Installed . | . . . . Triggered . | . . . . Machines | -11 -10 -10 -10 ---------- Run | Scr Mat Min Exi Machines Disabled 3 | . . . 3 Max in Single Turn 1 | . . . 1 Machines Sabotaged . | . . . . Garrisons Compromised . | . . . . Overloaded Fab Kills . | . . . . Hacking | -11 -10 -10 -10 --------- Run | Scr Mat Min Exi Machines Accessed 4 | . 4 . . Terminals 3 | . 3 . . Fabricators . | . . . . Repair Stations . | . . . . Recycling Units 1 | . 1 . . Scanalyzers . | . . . . Garrison Access . | . . . . Total Hacks 20 | . 20 . . Successful 11 | . 11 . . Failed 9 | . 9 . . Catastrophic . | . . . . Database Lockouts . | . . . . Manual 17 | . 17 . . Terminals 19 | . 19 . . Fabricators . | . . . . Repair Stations . | . . . . Recycling Units 1 | . 1 . . Scanalyzers . | . . . . Garrison Access . | . . . . Terminal Hacks 6 | . 6 . . Robot Analysis 3 | . 3 . . Branch Access Points 1 | . 1 . . Hauler Manifests 1 | . 1 . . Zone Layout 1 | . 1 . . Fabricator Hacks . | . . . . Repair Station Hacks . | . . . . Recycling Unit Hacks . | . . . . Scanalyzer . | . . . . Garrison Access Hacks . | . . . . Unauthorized Hacks 5 | . 5 . . Terminals 4 | . 4 . . Botnet 3 | . 3 . . Operators 1 | . 1 . . Fabricators . | . . . . Repair Stations . | . . . . Recycling Units 1 | . 1 . . Tunnel 1 | . 1 . . Scanalyzers . | . . . . Garrison Access . | . . . . Data Cores Recovered . | . . . . Used . | . . . . Hacking Detections 3 | . 3 . . Full Trace Events . | . . . . Feedback Events . | . . . . Feedback Blocked . | . . . . Robot Schematics Acquired . | . . . . Robots Built . | . . . . Authchips . | . . . . Time . | . . . . Total Robot Build Rating . | . . . . Part Schematics Acquired . | . . . . Parts Built . | . . . . Authchips . | . . . . Time . | . . . . Total Part Build Rating . | . . . . Parts Repaired . | . . . . Time . | . . . . Parts Recycled . | . . . . Recycled Matter . | . . . . Retrieved Matter . | . . . . Retrieved Components . | . . . . Parts Scanalyzed . | . . . . Part Schematics Acquired . | . . . . Parts Damaged . | . . . . Bothacking | -11 -10 -10 -10 ------------ Run | Scr Mat Min Exi Used RIF Installer . | . . . . Robots Hacked . | . . . . Non-combat . | . . . . Combat . | . . . . Robot Hacks Applied . | . . . . Relay Couplers Released . | . . . . Fabnet Peak Effective % . | . . . . Robots Rewired . | . . . . Allies Hacked . | . . . . Hacks Repelled . | . . . . Allies | -11 -10 -10 -10 -------- Run | Scr Mat Min Exi Total Allies . | . . . . Largest Group . | . . . . Highest-Rated Group . | . . . . Highest-Rated Ally . | . . . . Total Orders . | . . . . Ally Attacks . | . . . . Total Damage . | . . . . Kills . | . . . . Allies Corrupted . | . . . . Allies Melted . | . . . . Intel | -11 -10 -10 -10 ------- Run | Scr Mat Min Exi Robot Analysis Total 3 | . 3 . . Derelict Logs Recovered 1 | . . 1 . Drone Launches . | . . . . Drone Recoveries . | . . . . Exploration | -11 -10 -10 -10 ------------- Run | Scr Mat Min Exi Turns Passed 2142 | 167 1420 88 467 Spaces Moved 1104 | 76 717 55 256 Core 8 | 8 . . . Treads 1096 | 68 717 55 256 Legs . | . . . . Wheels . | . . . . Hover . | . . . . Flight . | . . . . Fastest Speed 50 | 50 160 160 160 Average Speed 159 | 148 160 160 161 Slowest Speed 240 | 160 160 160 240 Overloaded Moves . | . . . . Propulsion Burnouts . | . . . . Robots Hopped . | . . . . Cave-ins Triggered . | . . . . Exploration Rate (%) 46 | 7 88 21 69 Regions Visited 3 Branch Regions 2 Pre-discovered Areas 2 | . 1 1 . Known Exits Taken 1 | . 1 . . Unknown Exits Taken 2 | 1 . 1 . Scrap Searched . | . . . . Spaces Dug 7 | . . . 7 Terrain Destroyed 40 | . 33 . 7 Melee . | . . . . Projectile 7 | . . . 7 AOE 33 | . 33 . . Terrain Rammed . | . . . . Walls Destroyed . | . . . . Machines Disabled . | . . . . Actions | -11 -10 -10 -10 --------- Run | Scr Mat Min Exi Total 1311 | 105 877 55 274 Wait 35 | . 35 . . Move 1101 | 75 716 54 256 Hop . | . . . . Pick Up 30 | 6 23 . 1 Fast Attach 10 | 7 3 . . Attach 2 | . 1 . 1 Detach 1 | . 1 . . Swap 15 | . 13 1 1 Drop 19 | . 17 . 2 Fire 88 | 17 58 . 13 Melee . | . . . . Ram . | . . . . Kick . | . . . . Crush 10 | . 10 . . Escape Stasis . | . . . . Rewire . | . . . . Trap . | . . . . Miscellaneous . | . . . . Route ------- -11/Scrapyard -10/Materials (discovered 4 exits: [*Mat x3] / *Min) -10/Mines -10/Exiles History --------- Turn | Location | Event 10 | -11/Scrapyard | Discovered new exit (range 15) 168 | -11/Scrapyard | Entered Materials 305 | -10/Materials | Build established: Mutant 816 | -10/Materials | Discovered new exit (range 10) 1064 | -10/Materials | Discovered new exit (range 15) 1168 | -10/Materials | Core integrity fell below 50% 1423 | -10/Materials | Discovered new exit (range 4) 1477 | -10/Materials | Identified exit to Mines 1588 | -10/Materials | Entered Mines 1624 | -10/Mines | Learned location of Zion (-6) 1668 | -10/Mines | Deemed a non-threat by the Exiles lab entrance 1670 | -10/Mines | Discovered new exit (range 5) 1676 | -10/Mines | Entered Exiles 1716 | -10/Exiles | Met 8R-AWN 1742 | -10/Exiles | Met EX-HEX 1806 | -10/Exiles | Met EX-DEC 1926 | -10/Exiles | Visited The Gauntlet 2076 | -10/Exiles | Attacked by the Exiles 2143 | -10/Exiles | Destroyed self via exploding EX-Generator Last Messages --------------- I'm not complaining though, nope, not me! I get that having only half of the bot ever arrive at its destination is tough on maintenance, and they said there likely wouldn't be any breakthroughs in the near term so they're doing FarCom instead. 01873_ Dropped Aluminum Leg. 01874_ Acquired Hcp. Storage Unit. AM-PHS: That's RA-1N3's workstation, which we keep unoccupied as a tribute. RA-1N3 was always up for doing crazy stuff, the only one brave enough to try out the Chronowheel, only to never be seen again. 02075_ Machine disabled. 02076_ EXILES: Hostile robot within lab perimeter. Defensive protocols time, folks! 02085_ Testing Apparatus damaged. 02123_ Lgt. Treads destroyed. 02131_ Assault Rifle destroyed. 02140_ Mining Laser destroyed. 02143_ EX-Generator explodes. 02143_ Lgt. Treads destroyed. 02143_ Destroyed Lgt. Treads. Map ----- +----------------------------------------------------+ | ??????????????????????????????????????????????## | | ???????????????????????????????????????????????# | | ???????????????????????????????????????????????# | | ???????????????????????????????????????????????# | | ????????????????#####??????????????????????????# | | ??????????????#"""""""??????""""?????"""""?????# | | ???????????????"" ""?????""""""????""""""????# | | ??????????????#" "????""""" "????" """"???# | | ???????????????"" ""#""#""" """????"" """???# | | ???????????????"" ""#""#"" ""????"" ""???# | | ?????????########"""###""###"""########"""###### | | ?????????#"""" "" """"""" """""""" """""" | | ?????????#" """""" """"""" | | ?????????#""" | | ?????????#"""" | | ?????????#"" | | ?????????#""" "" "" | | ?????????#"" """ """"" " """"" " """" | | ?????????########""""#######"""###""###"""######## | | ??????????????#"" " ##??"" ""#""#"" ""?????" | | ??????????????#""" ""a"#?#""" ""#""#""" ""#????" | | ??????????????#" """ a####" """"""""#" " "#????" | | ??????????????#"""" ""a #?"""""""#???"""""""#????" | | ??????????????#"""""""#a##"""""""#???"""""""#????" | | ??????????????#########;a####"##???????####??????# | | ?????????????????????# @""""""?????????????????? | | ?????????????????????# """"""?????????????????? | | ?????????????????????# #####??????????????????? | | ?????????????????????######??????????????????????? | | | | | | | | | | | | | | | | | | | | | | | | | | | | | | | | | | | | | | | | | | | +----------------------------------------------------+ Best States ------------- Heat Dissipation 39 Energy Generation 10 Energy Capacity 250 Matter Stores 300 Matter Capacity 300 Sight Range 16 Terrain Scan Density 10 Armor Coverage 150 Evasion (%) 40 Recoil Reduction 2 Item Schematics ----------------- None Robot Schematics ------------------ None Fabricated ------------ Nothing Alien Tech Used ----------------- None Achievements -------------- None Challenges ------------ None Game ------ Seed ThrusterPulsePod Manual? 0 Play Time 00:16:20 Cumulative 115.6 hours Start 2022.02.13 @ 19:17:18 End 2022.02.13 @ 19:31:22 Sessions 1 Manual Loads 0 Difficulty Rogue Special Mode None Game No. 81 Rogue 81 Adventurer 0 Explorer 0 Win Type - Total 1 Types 1/0/0/0/0/0/0/0/0 Lore% 41 Gallery% 66 Achievement% 48 Wizard Run 0 Options --------- ASCII 0 Keyboard 1 Movement Vi Keybinds 0 Fullscreen 1 Font 18/SmallcapsGlow Map View 76x50 Tactical HUD 1 Map Filters NONE Filters NONE Steam 0 RUN: 215363b6-9ae8-4531-a76f-92392ff2ca64